{"text_format":"3","workbook":"xlsx","n_sheets":1,"sheets":["Тендерна пропозиція"],"not_rendered":{"images":1,"defined_names":20},"read":"whole","date_system":"1900"}

{"sheet":"Тендерна пропозиція","index":0,"n_rows":39,"n_cols":7,"rows_kept":39,"merged":[[0,1,3,1],[0,3,0,6],[1,4,1,6],[2,4,2,6],[32,3,35,4],[36,3,36,6],[37,3,37,5],[38,3,38,5]]}
[{"$nulls":3},"ТЕНДЕРНА ПРОПОЗИЦІЯ НА БУДІВЕЛЬНІ РОБОТИ"]
[{"$nulls":3},"Назва компанії","| У цю клітинку введіть поштову адресу компанії."]
[{"$nulls":3},"Телефон","| У цю клітинку введіть номер факсу компанії та адресу електронної пошти контактної особи."]
[{"$nulls":3},"КІЛЬКІСТЬ","ОПИС","ЦІНА ЗА ОДИНИЦЮ","СУМА"]
[null,"КЛІЄНТ",null,10,"Товар 1",{"v":165,"d":"165.00₴"},{"$f":"IFERROR(Цінові_пропозиції[[#This Row],[КІЛЬКІСТЬ]]*Цінові_пропозиції[[#This Row],[ЦІНА ЗА ОДИНИЦЮ]], \"\")","v":{"v":1650,"d":"1,650.00₴"}}]
[null,"У цю клітинку введіть ім’я клієнта.",null,21,"Пункт 2",{"v":40,"d":"40.00₴"},{"$f":"IFERROR(Цінові_пропозиції[[#This Row],[КІЛЬКІСТЬ]]*Цінові_пропозиції[[#This Row],[ЦІНА ЗА ОДИНИЦЮ]], \"\")","v":{"v":840,"d":"840.00₴"}}]
[null,"НОМЕР КОШТОРИСУ",null,5,"Товар 3",{"v":10.5,"d":"10.50₴"},{"$f":"IFERROR(Цінові_пропозиції[[#This Row],[КІЛЬКІСТЬ]]*Цінові_пропозиції[[#This Row],[ЦІНА ЗА ОДИНИЦЮ]], \"\")","v":{"v":52.5,"d":"52.50₴"}}]
[null,"C-1234",null,164,"Товар 4",{"v":2.75,"d":"2.75₴"},{"$f":"IFERROR(Цінові_пропозиції[[#This Row],[КІЛЬКІСТЬ]]*Цінові_пропозиції[[#This Row],[ЦІНА ЗА ОДИНИЦЮ]], \"\")","v":{"v":451,"d":"451.00₴"}}]
[null,"ДАТА",null,6,"Товар 5",{"v":12,"d":"12.00₴"},{"$f":"IFERROR(Цінові_пропозиції[[#This Row],[КІЛЬКІСТЬ]]*Цінові_пропозиції[[#This Row],[ЦІНА ЗА ОДИНИЦЮ]], \"\")","v":{"v":72,"d":"72.00₴"}}]
[null,{"$f":"TODAY()","v":"2018-11-16"},null,18,"Товар 6",{"v":5.5,"d":"5.50₴"},{"$f":"IFERROR(Цінові_пропозиції[[#This Row],[КІЛЬКІСТЬ]]*Цінові_пропозиції[[#This Row],[ЦІНА ЗА ОДИНИЦЮ]], \"\")","v":{"v":99,"d":"99.00₴"}}]
[null,"АДРЕСА",null,1,"Товар 7",{"v":25,"d":"25.00₴"},{"$f":"IFERROR(Цінові_пропозиції[[#This Row],[КІЛЬКІСТЬ]]*Цінові_пропозиції[[#This Row],[ЦІНА ЗА ОДИНИЦЮ]], \"\")","v":{"v":25,"d":"25.00₴"}}]
[null,"У цю клітинку введіть поштову адресу клієнта.",{"$nulls":4},{"$f":"IFERROR(Цінові_пропозиції[[#This Row],[КІЛЬКІСТЬ]]*Цінові_пропозиції[[#This Row],[ЦІНА ЗА ОДИНИЦЮ]], \"\")","v":{"v":0,"d":"0.00₴"}}]
[null,"МІСТО, ОБЛАСТЬ І ПОШТОВИЙ ІНДЕКС",{"$nulls":4},{"$f":"IFERROR(Цінові_пропозиції[[#This Row],[КІЛЬКІСТЬ]]*Цінові_пропозиції[[#This Row],[ЦІНА ЗА ОДИНИЦЮ]], \"\")","v":{"v":0,"d":"0.00₴"}}]
[null,"У цю клітинку введіть місто, область і поштовий індекс клієнта.",{"$nulls":4},{"$f":"IFERROR(Цінові_пропозиції[[#This Row],[КІЛЬКІСТЬ]]*Цінові_пропозиції[[#This Row],[ЦІНА ЗА ОДИНИЦЮ]], \"\")","v":{"v":0,"d":"0.00₴"}}]
[null,"ТЕЛЕФОН",{"$nulls":4},{"$f":"IFERROR(Цінові_пропозиції[[#This Row],[КІЛЬКІСТЬ]]*Цінові_пропозиції[[#This Row],[ЦІНА ЗА ОДИНИЦЮ]], \"\")","v":{"v":0,"d":"0.00₴"}}]
[null,"У цю клітинку введіть номер телефону клієнта.",{"$nulls":4},{"$f":"IFERROR(Цінові_пропозиції[[#This Row],[КІЛЬКІСТЬ]]*Цінові_пропозиції[[#This Row],[ЦІНА ЗА ОДИНИЦЮ]], \"\")","v":{"v":0,"d":"0.00₴"}}]
[null,"ЕЛЕКТРОННА ПОШТА",{"$nulls":4},{"$f":"IFERROR(Цінові_пропозиції[[#This Row],[КІЛЬКІСТЬ]]*Цінові_пропозиції[[#This Row],[ЦІНА ЗА ОДИНИЦЮ]], \"\")","v":{"v":0,"d":"0.00₴"}}]
[null,"У цю клітинку введіть адресу електронної пошти клієнта.",{"$nulls":4},{"$f":"IFERROR(Цінові_пропозиції[[#This Row],[КІЛЬКІСТЬ]]*Цінові_пропозиції[[#This Row],[ЦІНА ЗА ОДИНИЦЮ]], \"\")","v":{"v":0,"d":"0.00₴"}}]
[null,"ПРОДАВЕЦЬ",{"$nulls":4},{"$f":"IFERROR(Цінові_пропозиції[[#This Row],[КІЛЬКІСТЬ]]*Цінові_пропозиції[[#This Row],[ЦІНА ЗА ОДИНИЦЮ]], \"\")","v":{"v":0,"d":"0.00₴"}}]
[null,"У цю клітинку введіть ім’я продавця.",{"$nulls":4},{"$f":"IFERROR(Цінові_пропозиції[[#This Row],[КІЛЬКІСТЬ]]*Цінові_пропозиції[[#This Row],[ЦІНА ЗА ОДИНИЦЮ]], \"\")","v":{"v":0,"d":"0.00₴"}}]
[null,"ПРОЕКТ",{"$nulls":4},{"$f":"IFERROR(Цінові_пропозиції[[#This Row],[КІЛЬКІСТЬ]]*Цінові_пропозиції[[#This Row],[ЦІНА ЗА ОДИНИЦЮ]], \"\")","v":{"v":0,"d":"0.00₴"}}]
[null,"У цю клітинку введіть назву проекту.",{"$nulls":4},{"$f":"IFERROR(Цінові_пропозиції[[#This Row],[КІЛЬКІСТЬ]]*Цінові_пропозиції[[#This Row],[ЦІНА ЗА ОДИНИЦЮ]], \"\")","v":{"v":0,"d":"0.00₴"}}]
[null,"КИМ ПІДГОТОВЛЕНО:",{"$nulls":4},{"$f":"IFERROR(Цінові_пропозиції[[#This Row],[КІЛЬКІСТЬ]]*Цінові_пропозиції[[#This Row],[ЦІНА ЗА ОДИНИЦЮ]], \"\")","v":{"v":0,"d":"0.00₴"}}]
[null,"У цю клітинку введіть ім’я особи, яка підготувала тендерну пропозицію.",{"$nulls":4},{"$f":"IFERROR(Цінові_пропозиції[[#This Row],[КІЛЬКІСТЬ]]*Цінові_пропозиції[[#This Row],[ЦІНА ЗА ОДИНИЦЮ]], \"\")","v":{"v":0,"d":"0.00₴"}}]
[null,"ОДЕРЖУВАЧ ПРОПОЗИЦІЇ",{"$nulls":4},{"$f":"IFERROR(Цінові_пропозиції[[#This Row],[КІЛЬКІСТЬ]]*Цінові_пропозиції[[#This Row],[ЦІНА ЗА ОДИНИЦЮ]], \"\")","v":{"v":0,"d":"0.00₴"}}]
[null,"У цю клітинку введіть ім’я одержувача тендерної пропозиції.",{"$nulls":4},{"$f":"IFERROR(Цінові_пропозиції[[#This Row],[КІЛЬКІСТЬ]]*Цінові_пропозиції[[#This Row],[ЦІНА ЗА ОДИНИЦЮ]], \"\")","v":{"v":0,"d":"0.00₴"}}]
[null,"УМОВИ ОПЛАТИ",{"$nulls":4},{"$f":"IFERROR(Цінові_пропозиції[[#This Row],[КІЛЬКІСТЬ]]*Цінові_пропозиції[[#This Row],[ЦІНА ЗА ОДИНИЦЮ]], \"\")","v":{"v":0,"d":"0.00₴"}}]
[null,"З0 числа кожного місяця",{"$nulls":4},{"$f":"IFERROR(Цінові_пропозиції[[#This Row],[КІЛЬКІСТЬ]]*Цінові_пропозиції[[#This Row],[ЦІНА ЗА ОДИНИЦЮ]], \"\")","v":{"v":0,"d":"0.00₴"}}]
[null,"ТЕРМІН",{"$nulls":4},{"$f":"IFERROR(Цінові_пропозиції[[#This Row],[КІЛЬКІСТЬ]]*Цінові_пропозиції[[#This Row],[ЦІНА ЗА ОДИНИЦЮ]], \"\")","v":{"v":0,"d":"0.00₴"}}]
[null,{"$f":"TODAY()+30","v":"2018-12-16"},{"$nulls":4},{"$f":"IFERROR(Цінові_пропозиції[[#This Row],[КІЛЬКІСТЬ]]*Цінові_пропозиції[[#This Row],[ЦІНА ЗА ОДИНИЦЮ]], \"\")","v":{"v":0,"d":"0.00₴"}}]
[{"$nulls":5},"ПРОМІЖНИЙ ПІДСУМОК",{"$f":"SUBTOTAL(109,Цінові_пропозиції[СУМА])","v":{"v":3189.5,"d":"3,189.50₴"}}]
[{"$nulls":3},"ЦЯ ТЕНДЕРНА ПРОПОЗИЦІЯ ВКЛЮЧАЄ ТАКІ УМОВИ:",null,"ПОДАТКОВА СТАВКА ",{"v":0.0775,"d":"7.75%"}]
[{"$nulls":3},"Введіть умови тут.",null,"ПОДАТОК З ОБОРОТУ ",{"$f":"IFERROR(Проміжний_підсумок*Податкова_ставка, \"\")","v":{"v":247.18625,"d":"247.19₴"}}]
[{"$nulls":5},"ІНШЕ "]
[{"$nulls":5},"ПІДСУМОК",{"$f":"IFERROR(Проміжний_підсумок+G33+Інше, \"\")","v":{"v":3436.68625,"d":"3,436.69₴"}}]
[]
[{"$nulls":3},"Поставте підпис нижче, щоб прийняти цінову пропозицію:"]
[]
[{"$nulls":3},"Уповноважений представник",null,null,"Дата"]